bitfinex/quotes_SOLUSD_20250108
["timestamp","ask_amount","ask_price","bid_price","bid_amount"]
[1736308641030,0.12549,198.54,198.45,0.75557869]
[1736308641231,3.66549,198.54,198.46,6.0048]
[1736308641924,23.902374,198.6,198.46,30.41083586]
[1736308642129,0.12549,198.58,198.46,30.41083586]
[1736308642839,0.12549,198.58,198.48,24.40603586]
[1736308643151,20.0,198.64,198.5,1.6394]
[1736308643449,0.12549,198.62,198.5,1.6394]
[1736308644355,3.54,198.63,198.5,1.6394]
[1736308644356,0.12549,198.59,198.5,1.6394]
[1736308645853,3.54,198.61,198.51,0.75537356]
[1736308646029,3.54,198.61,198.5,2.39477356]
[1736308646417,0.12549,198.6,198.5,2.39477356]
[1736308647255,11.16316961,198.72,198.57,24.40603586]
[1736308647464,11.16316961,198.72,198.59,24.40603586]
[1736308647465,7.62316961,198.72,198.59,24.40603586]
[1736308647668,3.54,198.71,198.6,2.36949401]
[1736308648328,3.54,198.71,198.6,1.6145]
[1736308648853,0.12549,198.7,198.6,1.6145]
[1736308649343,3.44,198.7,198.61,0.75499116]
[1736308649524,0.12549,198.69,198.61,0.75499116]
[1736308650058,7.62316961,198.81,198.62,48.18291986]
[1736308650221,3.44,198.8,198.63,0.75485498]
[1736308650624,0.12549,198.77,198.63,0.75485498]
[1736308651342,0.12549,198.75,198.63,0.75485498]
[1736308651554,0.12549,198.73,198.63,0.75485498]
[1736308652321,0.12549,198.73,198.63,25.16089084]
[1736308652523,0.12549,198.73,198.63,0.75485498]
[1736308655446,20.0,198.81,198.65,6.1618]
[1736308655655,20.0,198.81,198.65,6.91657243]
[1736308655855,0.12549,198.76,198.65,6.91657243]
[1736308657674,0.12549,198.79,198.65,6.91657243]
[1736308657842,0.12549,198.76,198.66,23.776884]
[1736308658044,0.12549,198.76,198.68,1.6223]
[1736308658245,0.12549,198.76,198.69,0.75464358]
[1736308659454,13.44,198.81,198.69,0.75464358]
[1736308659663,0.12549,198.8,198.69,0.75464358]
[1736308661149,0.12549,198.8,198.69,15.96919744]
[1736308661351,0.12549,198.8,198.7,48.11514912]
[1736308661556,0.12549,198.8,198.71,0.75450755]
[1736308661946,0.12549,198.8,198.71,25.09277267]
[1736308662562,0.12549,198.8,198.72,24.33826512]
[1736308662761,0.12549,198.8,198.72,0.75453129]
[1736308662972,0.12549,198.8,198.74,24.33826512]
[1736308663149,0.12549,198.8,198.75,0.7544536]
[1736308663556,0.12549,198.8,198.76,24.33826512]
[1736308664547,0.12549,198.8,198.77,0.75438904]
[1736308664741,0.12549,198.8,198.77,25.09265416]
[1736308665156,10.0,198.81,198.77,0.75438904]
[1736308665357,10.0,198.81,198.77,25.09265416]
[1736308665562,10.0,198.81,198.78,24.33826512]
[1736308665773,10.0,198.81,198.78,0.75427632]
[1736308665975,10.0,198.81,198.79,48.11514912]
[1736308666184,10.0,198.81,198.78,25.09254144]
[1736308666389,10.0,198.81,198.73,32.51636512]
[1736308666592,10.0,198.81,198.73,8.1781]
[1736308667966,9.31922426,198.81,198.75,23.776884]
[1736308668377,9.31922426,198.81,198.73,8.1781]
[1736308668676,9.31922426,198.81,198.73,8.93258964]
[1736308669968,9.31922426,198.81,198.74,23.776884]
[1736308670967,9.31922426,198.81,198.73,8.93258964]
[1736308671171,9.31922426,198.81,198.73,8.1781]
[1736308674755,9.31922426,198.81,198.73,8.93257848]
[1736308675082,9.31922426,198.81,198.73,8.1781]
[1736308677967,9.31922426,198.81,198.73,8.93261597]
[1736308678480,9.31922426,198.81,198.73,8.1781]
[1736308679659,9.31922426,198.81,198.74,0.75449526]
[1736308680286,9.31922426,198.81,198.73,8.1781]
[1736308682386,9.31922426,198.81,198.79,24.33826512]
[1736308682555,9.31922426,198.81,198.8,48.8693423]
[1736308682874,9.44471426,198.81,198.8,48.8693423]
[1736308683184,9.31922426,198.81,198.8,48.8693423]
[1736308683385,9.31922426,198.81,198.8,39.72255322]
[1736308683758,9.44471426,198.81,198.8,39.72255322]
[1736308686277,0.12549,198.8,198.79,15.94561163]
[1736308686483,0.12549,198.8,198.79,0.75413559]
[1736308686791,0.12549,198.8,198.79,24.53101959]
[1736308688276,0.12549,198.8,198.79,0.75413559]
[1736308688482,0.12549,198.8,198.78,0.754291]
[1736308690669,0.12549,198.8,198.73,1.5537]
[1736308690989,0.12549,198.8,198.68,7.15297934]
[1736308693179,0.12549,198.8,198.71,15.19147604]
[1736308693385,0.12549,198.8,198.71,15.94602012]
[1736308693578,0.12549,198.8,198.72,15.19147604]
[1736308694296,0.12549,198.8,198.71,35.94602012]
[1736308695213,0.12549,198.8,198.72,15.19147604]
[1736308696481,0.12549,198.8,198.73,0.75455206]
[1736308697970,0.12549,198.8,198.72,15.94600887]
[1736308698398,0.12549,198.8,198.71,20.0]
[1736308699083,0.12549,198.8,198.71,35.94607857]
[1736308701285,0.12549,198.8,198.72,38.96836004]
[1736308701492,0.12549,198.8,198.73,15.94596908]
[1736308701693,0.12549,198.8,198.75,15.19147604]
[1736308701897,0.12549,198.8,198.76,0.75442767]
[1736308703479,0.12549,198.8,198.73,0.75441486]
[1736308703674,0.12549,198.8,198.73,15.9458909]
[1736308704098,0.12549,198.8,198.73,0.75441486]
[1736308705675,0.12549,198.8,198.73,15.9458909]
[1736308705879,0.12549,198.8,198.73,0.75441486]
[1736308706398,0.12549,198.8,198.73,15.9458909]
[1736308713511,0.12549,198.8,198.73,0.75441486]
[1736308715298,0.12549,198.8,198.73,15.9458909]
[1736308715699,0.12549,198.8,198.75,15.19147604]
[1736308715900,0.12549,198.8,198.75,0.75440902]
[1736308717209,0.12549,198.8,198.75,20.0]
[1736308717814,0.12549,198.8,198.74,0.75448713]
[1736308718695,0.12549,198.83,198.74,0.75448713]
[1736308719309,0.12549,198.83,198.73,24.5313617]
[1736308720222,0.12549,198.83,198.74,9.73182398]
[1736308720599,0.12549,198.83,198.75,0.75446373]
[1736308720804,3.06,198.84,198.75,0.75446373]
[1736308721415,0.12549,198.83,198.75,0.75446373]
[1736308723401,0.12549,198.87,198.78,9.73182398]
[1736308723589,0.12549,198.87,198.79,0.75427645]
[1736308723790,0.12549,198.87,198.79,20.0]
[1736308724102,0.12549,198.89,198.79,20.75434024]
[1736308724511,6.3156,198.91,198.8,23.776884]
[1736308724690,9.3756,198.91,198.82,23.776884]
[1736308724896,9.3756,198.91,198.82,24.53099225]
[1736308725239,0.12549,198.9,198.82,24.53099225]
[1736308726003,0.12549,198.92,198.82,34.26281623]
[1736308726893,0.12549,198.93,198.82,24.53099225]
[1736308727321,0.12549,198.93,198.82,34.26281623]
[1736308728015,0.12549,198.92,198.82,34.26281623]
[1736308728224,0.12549,198.92,198.82,24.53099225]
[1736308728905,0.12549,198.92,198.78,1.541]
[1736308729134,0.12549,198.92,198.78,2.29532982]
[1736308729654,0.12549,198.92,198.78,12.0271538]
[1736308730852,0.12549,198.92,198.78,2.29532982]
[1736308731152,0.12549,198.92,198.78,12.0271538]
[1736308731544,0.12549,198.92,198.78,2.29532982]
[1736308732216,0.12549,198.92,198.79,23.776884]
[1736308732431,0.12549,198.92,198.8,0.75425462]
[1736308732816,0.12549,198.92,198.79,24.53115649]
[1736308734652,0.12549,198.92,198.79,46.83848047]
[1736308735353,20.0,198.94,198.81,23.776884]
[1736308735532,3.18549,198.93,198.82,0.75414989]
[1736308736348,0.12549,198.93,198.82,0.75414989]
[1736308736557,0.12549,198.91,198.82,0.75414989]
[1736308736759,0.12549,198.91,198.83,23.776884]
[1736308737063,0.12549,198.91,198.84,0.7540853]
[1736308737965,0.12549,198.93,198.84,0.7540853]
[1736308738465,6.2893,199.05,198.88,9.73182398]
[1736308738625,6.2893,199.05,198.91,9.73182398]
[1736308738832,6.2893,199.05,198.94,9.73182398]
[1736308739162,6.2893,199.05,198.95,0.75365918]
[1736308740051,7.62316961,199.14,199.04,9.73182398]
[1736308740306,7.62316961,199.14,199.05,0.7533414]
[1736308740745,7.62316961,199.18,199.05,20.7533414]
[1736308740941,7.62316961,199.18,199.05,30.48516538]
[1736308741337,7.62316961,199.18,199.05,15.90945521]
[1736308741539,0.12549,199.17,199.05,15.90945521]
[1736308742148,2.88,199.23,199.06,38.93299781]
[1736308742359,0.12549,199.22,199.07,0.75322441]
[1736308742856,0.12549,199.18,199.07,0.75322441]
[1736308744264,0.12549,199.18,199.06,0.7532126]
[1736308744434,0.12549,199.13,199.0,15.15611381]
[1736308744633,20.0,199.14,198.99,0.75334488]
[1736308744634,0.12549,199.11,198.99,0.75334488]
[1736308744843,0.12549,199.11,198.98,1.5896]
[1736308745030,0.12549,199.07,198.98,1.5896]
[1736308745231,0.12549,199.07,198.94,0.75356755]
[1736308745568,0.12549,199.07,198.93,0.75369857]
[1736308745774,23.776884,199.11,198.92,1.5912]
[1736308745775,0.12549,199.02,198.92,1.5912]
[1736308745932,0.12549,199.0,198.87,2.34497182]
[1736308746258,0.12549,199.0,198.87,17.50108563]
[1736308748853,0.12549,199.0,198.88,23.776884]
[1736308749059,0.12549,199.0,198.89,0.75388557]
[1736308750650,0.12549,199.0,198.89,15.90999938]
[1736308751158,0.12549,199.0,198.89,0.75388557]
[1736308753762,3.00549,199.0,198.89,15.90999938]
[1736308754258,3.00549,199.0,198.89,0.75388557]
[1736308754766,3.00549,199.0,198.87,1.5912]
[1736308755148,3.00549,199.0,198.87,2.34524188]
[1736308755366,3.00549,199.0,198.87,17.50135569]
[1736308755867,2.88,198.99,198.89,15.15611381]
[1736308756070,2.88,198.99,198.87,1.5912]
[1736308756264,0.12549,198.98,198.87,1.5912]
[1736308757052,0.12549,198.98,198.88,0.75398606]
[1736308757267,0.12549,198.98,198.89,23.776884]
[1736308757668,0.12549,198.98,198.88,0.75398606]
[1736308757869,0.12549,198.98,198.87,17.50124074]
[1736308759757,0.12549,198.98,198.89,20.0]
[1736308761774,0.12549,198.98,198.87,17.50124074]
[1736308761977,0.12549,198.98,198.87,2.34512693]
[1736308764273,0.12549,198.98,198.87,1.5912]
[1736308764481,0.12549,198.94,198.82,1.6167]
[1736308765374,2.88,198.93,198.82,1.6167]
[1736308765582,2.88,198.93,198.82,16.77281381]
[1736308765874,2.88,198.93,198.83,0.75413676]
[1736308766059,2.88,198.93,198.84,23.776884]
[1736308766256,2.88,198.93,198.83,0.75413676]
[1736308766568,0.12549,198.92,198.83,0.75413676]
[1736308767158,0.12549,198.92,198.83,15.91025057]
[1736308767782,0.12549,198.92,198.83,0.75413676]
[1736308769065,0.12549,198.92,198.83,15.91025057]
[1736308769783,0.12549,198.92,198.84,38.93299781]
[1736308769984,20.0,198.98,198.85,0.75404293]
[1736308770184,0.12549,198.94,198.85,15.91015674]
[1736308770363,0.12549,198.94,198.85,0.75404293]
[1736308771169,2.82,198.96,198.86,23.776884]
[1736308771763,2.94549,198.97,198.87,0.75403054]
[1736308771959,2.94549,198.97,198.87,15.91014435]
[1736308772175,2.94549,198.97,198.88,15.15611381]
[1736308773275,2.94549,198.97,198.87,15.91014435]
[1736308773589,2.94549,198.97,198.89,20.0]
[1736308774396,0.12549,198.97,198.89,20.0]
[1736308774570,0.12549,198.98,198.89,20.0]
[1736308777470,0.12549,198.98,198.85,15.15611381]
[1736308777471,20.12549,198.98,198.85,15.15611381]
[1736308777675,20.12549,198.98,198.84,15.15611381]
[1736308777981,20.12549,198.98,198.83,15.15611381]
[1736308778298,20.12549,198.98,198.85,20.0]
[1736308780672,20.12549,198.98,198.85,29.71999389]
[1736308781275,20.12549,198.98,198.85,20.0]
[1736308781473,20.12549,198.98,198.85,35.18767705]
[1736308781992,20.12549,198.98,198.86,15.18767705]
[1736308782587,20.12549,198.98,198.87,23.776884]
[1736308782913,20.12549,198.98,198.85,20.0]
[1736308783291,20.12549,198.98,198.84,20.75403423]
[1736308783775,20.12549,198.98,198.85,15.18767705]
[1736308783975,0.12549,198.96,198.85,15.18767705]
[1736308784580,0.12549,198.96,198.84,35.94171128]
[1736308784785,0.12549,198.96,198.84,20.75403423]
[1736308785290,0.12549,198.96,198.84,35.94171128]
[1736308786492,0.12549,198.96,198.84,35.18767705]
[1736308786701,0.12549,198.96,198.84,20.0]
[1736308786881,0.12549,198.92,198.8,2.0066287]
[1736308787091,0.12549,198.92,198.79,15.94182596]
[1736308788298,0.12549,198.92,198.8,15.18767705]
[1736308788503,0.12549,198.92,198.81,15.18767705]
[1736308789301,0.12549,198.92,198.82,15.94190183]
[1736308789511,2.82,198.97,198.82,15.94190183]
[1736308789806,0.12549,198.96,198.82,15.18767705]
[1736308789985,0.12549,198.96,198.82,23.776884]
[1736308790498,0.12549,198.92,198.8,27.76307705]
[1736308792010,0.12549,198.9,198.8,27.76307705]
[1736308792190,0.12549,198.9,198.81,15.18767705]
[1736308793507,0.12549,198.9,198.82,15.18767705]
[1736308793903,0.12549,198.9,198.83,15.9418797]
[1736308794211,0.12549,198.9,198.83,35.9418797]
[1736308794408,0.12549,198.93,198.84,15.18767705]
[1736308794905,6.0419,199.01,198.85,15.18767705]
[1736308795210,20.0,198.98,198.85,15.18767705]
[1736308795707,0.12549,198.97,198.84,15.18767705]
[1736308795905,0.12549,198.97,198.85,23.776884]
[1736308796102,2.82,198.97,198.86,15.18767705]
[1736308796308,0.12549,198.96,198.86,15.18767705]
[1736308797293,0.12549,198.96,198.85,15.94177381]
[1736308797494,0.12549,198.96,198.84,15.18767705]
[1736308798412,0.12549,198.96,198.85,15.18767705]
[1736308798609,0.12549,198.96,198.85,15.94176218]
[1736308798998,0.12549,198.96,198.86,15.18767705]
[1736308799216,20.0,198.98,198.87,15.94171987]
[1736308799523,2.76,198.97,198.87,15.94171987]
[1736308799689,0.12549,198.96,198.87,15.94171987]
[1736308799889,0.12549,198.96,198.88,23.776884]
[1736308800112,0.12549,198.96,198.87,15.94171987]
[1736308800907,0.12549,198.97,198.87,15.94171987]
[1736308801113,0.12549,198.97,198.87,23.776884]
[1736308802217,0.12549,198.97,198.87,33.49466825]
[1736308802597,0.12549,198.97,198.88,10.47175819]
[1736308802802,0.12549,198.97,198.86,34.24860223]
[1736308803007,0.12549,198.97,198.87,9.71778425]
[1736308803193,0.12549,198.97,198.88,10.47172293]
[1736308803593,0.12549,198.97,198.88,0.75393868]
[1736308803997,8.8019,199.01,198.89,33.49466825]
[1736308804196,0.12549,199.0,198.9,10.47164843]
[1736308804417,0.12549,199.0,198.89,34.24852728]
[1736308804616,0.12549,199.0,198.9,20.0]
[1736308804917,0.12549,198.98,198.88,1.5983]
[1736308805717,0.12549,198.98,198.89,34.24859338]
[1736308806902,0.12549,198.98,198.88,1.5983]
[1736308807123,0.12549,198.93,198.82,10.4717702]
[1736308807427,0.12549,198.93,198.82,0.75398595]
[1736308807613,2.76,198.95,198.83,9.71778425]
[1736308807802,2.76,198.95,198.84,9.71778425]
[1736308808001,2.76,198.95,198.84,10.47186732]
[1736308808215,2.76,198.95,198.85,9.71778425]
[1736308808411,2.76,198.95,198.84,10.47186732]
[1736308808412,0.12549,198.94,198.84,10.47186732]
[1736308809304,0.12549,198.94,198.86,9.71778425]
[1736308809498,0.12549,198.94,198.87,30.47176093]
[1736308810294,2.76,199.03,198.89,23.776884]
[1736308810498,2.76,199.03,198.91,23.776884]
[1736308810706,0.12549,199.0,198.91,23.776884]
[1736308810901,0.12549,199.0,198.88,0.75382563]
[1736308811098,0.12549,199.0,198.87,32.5706]
[1736308811099,0.12549,199.0,198.87,30.47173159]
[1736308811298,0.12549,199.0,198.87,29.71778425]
[1736308811522,0.12549,198.97,198.87,29.71778425]
[1736308812194,0.12549,198.97,198.86,20.0]
[1736308812397,0.12549,198.97,198.84,0.75400043]
[1736308812604,0.12549,198.97,198.83,13.32720484]
[1736308812921,0.12549,198.97,198.84,23.776884]
[1736308813111,0.12549,198.97,198.85,0.75407203]
[1736308813317,0.12549,198.97,198.85,10.47185628]
[1736308814020,2.04309464,199.05,198.88,9.71778425]
[1736308814222,2.04309464,199.05,198.85,0.75407203]
[1736308814223,8.8019,199.01,198.89,10.47175077]
[1736308814419,2.04309464,199.05,198.96,9.71778425]
[1736308814596,7.62316961,199.08,198.96,9.71778425]
[1736308814802,7.62316961,199.08,198.97,9.71778425]
[1736308815003,20.0,199.09,198.98,9.71778425]
[1736308815204,2.76,199.11,198.99,9.71778425]
[1736308815509,2.76,199.11,199.0,0.75352778]
[1736308815829,0.12549,199.11,199.0,34.24815526]
[1736308816003,6.1942,199.12,199.0,34.24815526]
[1736308816200,6.1942,199.12,199.01,9.71778425]
[1736308816502,0.12549,199.11,199.01,9.71778425]
[1736308816706,0.12549,199.11,199.02,10.47121605]
[1736308817152,0.12549,199.12,199.03,9.71778425]
[1736308817309,0.12549,199.12,199.05,38.93375314]
[1736308818123,20.12549,199.17,199.06,15.15686914]
[1736308818327,0.12549,199.17,199.06,15.15686914]
[1736308818704,20.12549,199.17,199.06,15.15686914]
[1736308818904,0.12549,199.17,199.05,38.93375314]
[1736308819434,0.12549,199.17,199.06,15.15686914]
[1736308819609,20.12549,199.17,199.06,15.15686914]
[1736308820704,20.12549,199.17,199.05,38.93375314]
[1736308822727,20.12549,199.17,199.05,23.776884]
[1736308823024,20.12549,199.17,199.04,0.75336821]
[1736308823231,20.12549,199.17,199.02,12.33129128]
[1736308823411,0.12549,199.12,199.02,5.047]
[1736308824531,0.12549,199.12,199.01,5.047]
[1736308826424,0.12549,199.12,199.0,5.047]
[1736308826727,0.12549,199.1,199.0,5.047]
[1736308826931,2.88549,199.1,199.0,5.047]
[1736308827532,2.88549,199.1,198.99,5.047]
[1736308828315,2.88549,199.1,199.0,0.75350168]
[1736308828524,2.88549,199.1,199.01,5.047]
[1736308829016,2.2099,199.1,199.01,5.047]
[1736308830039,2.76,199.26,199.12,20.0]
[1736308830265,2.76,199.25,199.13,15.90985999]
[1736308830540,0.12549,199.24,199.13,0.75299085]
[1736308830742,0.12549,199.24,199.13,15.90985999]
[1736308830926,6.2258,199.28,199.14,15.15686914]
[1736308831112,6.2258,199.28,199.15,0.75298286]
[1736308831527,0.12549,199.26,199.15,0.75298286]
[1736308831933,20.0,199.25,199.15,0.75298286]
[1736308832319,0.12549,199.24,199.15,0.75298286]
[1736308833338,0.12549,199.24,199.13,0.75296595]
[1736308834748,0.12549,199.24,199.11,0.75303899]
[1736308835247,0.12549,199.24,199.12,23.776884]
[1736308835421,0.12549,199.24,199.13,0.75303213]
[1736308835617,2.76,199.27,199.15,20.0]
[1736308835822,0.12549,199.26,199.15,20.0]
[1736308836548,0.12549,199.24,199.13,0.75303213]
[1736308838143,19.5,199.25,199.13,0.75303213]
[1736308838727,2.76,199.24,199.13,0.75303213]
[1736308841675,2.76,199.24,199.12,38.93375314]
[1736308841676,2.76,199.24,199.1,15.90989939]
[1736308841947,2.76,199.24,199.11,23.776884]
[1736308842632,2.76,199.24,199.12,0.75307464]
[1736308843041,2.76,199.23,199.12,15.90994378]
[1736308843245,2.76,199.23,199.12,0.75307464]
[1736308843830,0.12549,199.22,199.12,0.75307464]
[1736308844244,19.5,199.25,199.14,23.776884]
[1736308844449,22.26,199.25,199.15,0.75293863]
[1736308845137,22.26,199.25,199.14,23.776884]
[1736308845652,2.76,199.25,199.14,23.776884]
[1736308846255,2.76,199.25,199.15,0.7529498]
[1736308848976,22.76,199.25,199.13,23.776884]
[1736308849468,22.76,199.25,199.14,0.75298111]
[1736308851877,2.76,199.25,199.14,0.75298111]
[1736308852562,2.76,199.25,199.12,33.47049028]
[1736308852763,2.76,199.25,199.13,0.75297101]
[1736308853761,2.76,199.25,199.14,0.75298506]
[1736308854767,2.76,199.25,199.13,0.75297076]
[1736308856374,2.76,199.25,199.14,9.69360628]
[1736308856552,2.76,199.25,199.13,10.44657704]
[1736308856756,2.76,199.25,199.13,0.75297076]
[1736308857878,2.76,199.25,199.1,12.5559]
[1736308857879,2.76,199.25,199.11,10.44661375]
[1736308858073,2.76,199.25,199.11,16.67241375]
[1736308858274,2.76,199.25,199.11,40.44929775]
[1736308858972,2.76,199.25,199.11,16.67241375]
[1736308859578,2.76,199.25,199.12,9.69360628]
[1736308859870,2.76,199.25,199.13,0.75298923]
[1736308860491,22.76,199.25,199.13,0.75298923]
[1736308860680,22.76,199.25,199.1,0.75307328]
[1736308861100,22.76,199.25,199.08,0.75311366]
[1736308861276,0.12549,199.2,199.06,0.75315297]
[1736308861671,0.12549,199.2,199.06,5.80015297]
[1736308862493,0.12549,199.2,198.99,20.3208]
[1736308862494,20.12549,199.16,198.96,1.5943]
[1736308862700,0.12549,199.14,198.97,0.75349314]
[1736308862881,0.12549,199.12,198.97,0.75349314]
[1736308863078,0.12549,199.09,198.97,0.75349314]
[1736308863308,0.12549,199.09,198.96,2.34782153]
[1736308863483,0.12549,199.09,198.96,12.04142781]
[1736308863872,0.12549,199.09,198.96,2.34782153]
[1736308864070,0.12549,199.09,198.94,5.047]
[1736308865800,0.12549,199.09,198.93,5.047]
[1736308866375,20.0,199.1,198.93,5.047]
[1736308866376,0.12549,199.04,198.93,5.047]
[1736308866575,0.12549,199.02,198.93,5.047]
[1736308866776,0.12549,199.02,198.88,5.047]
[1736308866976,0.12549,198.97,198.84,1.98849668]
[1736308867188,0.12549,198.97,198.86,20.0]
[1736308867675,0.12549,198.97,198.83,15.9294374]
[1736308867894,0.12549,198.97,198.84,23.776884]
[1736308868075,0.12549,198.97,198.85,0.75406342]
[1736308868277,0.12549,198.97,198.84,15.92951959]
[1736308868476,0.12549,198.97,198.84,0.75405517]
[1736308868875,0.12549,198.97,198.85,23.776884]
[1736308869075,0.12549,198.97,198.84,0.75405517]
[1736308869287,0.12549,198.97,198.85,15.17546442]
[1736308869986,0.12549,198.97,198.85,38.95234842]
[1736308870977,0.12549,198.97,198.85,39.70640093]
[1736308871372,0.12549,198.97,198.89,15.17546442]
[1736308871579,2.76,198.96,198.89,15.17546442]
[1736308871777,0.12549,198.95,198.89,15.17546442]
[1736308872379,0.12549,198.95,198.91,15.17546442]
[1736308872880,0.12549,199.0,198.91,15.17546442]
[1736308873079,0.12549,199.0,198.87,0.75386518]
[1736308873080,2.76,198.99,198.93,15.17546442]
[1736308873296,0.12549,199.0,198.93,15.17546442]
[1736308873489,0.12549,199.0,198.95,15.17546442]
[1736308873692,0.12549,199.0,198.94,15.17546442]
[1736308874599,0.12549,199.05,198.96,15.17546442]
[1736308874793,0.12549,199.05,198.97,15.17546442]
[1736308875178,0.12549,199.06,198.98,15.17546442]
[1736308875381,0.12549,199.06,198.97,15.17546442]
[1736308875609,0.12549,199.06,198.96,15.17546442]
[1736308877005,0.12549,199.06,198.95,15.92920073]
[1736308877201,0.12549,199.06,198.93,15.92913887]
[1736308877202,23.902374,199.06,198.93,15.92913887]
[1736308877400,6.63629,199.02,198.9,0.75377417]
[1736308877704,6.63629,199.02,198.91,15.17546442]
[1736308879490,6.63629,199.02,198.89,16.71686442]
[1736308879697,6.63629,199.02,198.9,0.75388647]
[1736308879905,6.63629,199.02,198.89,17.47073027]
[1736308880094,6.63629,199.02,198.9,15.17546442]
[1736308880290,6.63629,199.02,198.91,0.75382589]
[1736308880599,6.63629,199.02,198.86,0.75382767]
[1736308880600,23.902374,198.98,198.86,0.75382767]
[1736308880807,0.12549,198.96,198.84,2.03346114]
[1736308880985,23.902374,198.96,198.83,0.75402203]
[1736308881389,20.12549,198.92,198.8,15.17546442]
[1736308881605,20.12549,198.92,198.79,17.44208991]
[1736308881907,0.12549,198.9,198.79,17.44208991]
[1736308882108,0.12549,198.88,198.79,17.44208991]
[1736308882290,0.12549,198.88,198.8,35.17546442]
[1736308882486,0.12549,198.88,198.81,15.17546442]
[1736308883814,0.12549,198.88,198.79,15.17546442]
[1736308883994,23.902374,198.88,198.77,5.80131432]
[1736308884311,23.902374,198.88,198.77,5.047]
[1736308884696,23.902374,198.88,198.77,15.17546442]
[1736308885383,0.12549,198.88,198.79,15.17546442]
[1736308885603,0.12549,198.88,198.8,15.17546442]
[1736308885805,0.12549,198.88,198.79,5.047]
[1736308886105,0.12549,198.88,198.79,20.22246442]
[1736308886311,2.76,198.9,198.83,15.17546442]
[1736308886497,6.2975,198.95,198.85,15.17546442]
[1736308886709,0.12549,198.93,198.84,15.17546442]
[1736308886902,0.12549,198.93,198.83,15.17546442]
[1736308887214,0.12549,198.93,198.84,15.17546442]
[1736308887612,0.12549,198.93,198.85,15.92954342]
[1736308887796,0.12549,198.93,198.83,15.9295423]
[1736308888411,0.12549,198.93,198.84,15.17546442]
[1736308888799,6.6573,199.0,198.87,15.17546442]
[1736308889007,6.6573,199.0,198.9,15.17546442]
[1736308889207,6.6573,199.0,198.93,15.17546442]
[1736308889391,0.12549,198.99,198.93,15.17546442]
[1736308889798,0.12549,198.99,198.92,15.17546442]
[1736308890105,0.12549,198.99,198.91,15.17546442]
[1736308891320,0.12549,198.99,198.89,15.17546442]
[1736308891796,0.12549,198.99,198.9,15.17546442]
[1736308892208,0.12549,198.99,198.91,0.75384178]
[1736308892403,0.12549,198.99,198.9,15.17546442]
[1736308893123,23.902374,198.99,198.84,0.75389777]
[1736308893418,23.902374,198.99,198.81,12.5743]
[1736308893419,0.12549,198.95,198.83,15.17546442]
[1736308893608,0.12549,198.95,198.82,0.75403858]
[1736308893609,2.88549,198.95,198.85,15.17546442]
[1736308895303,2.88549,198.95,198.84,35.92954973]
[1736308895502,2.88549,198.95,198.85,15.17546442]
[1736308898822,23.776884,198.99,198.87,15.17546442]
[1736308899012,2.76,198.97,198.88,15.17546442]
[1736308899408,2.76,198.97,198.89,15.17546442]
[1736308899612,0.12549,198.96,198.89,15.17546442]
[1736308900126,0.12549,198.96,198.88,15.92943629]
[1736308900323,0.12549,198.96,198.89,15.17546442]
[1736308900526,6.6573,199.0,198.91,15.17546442]
[1736308900703,6.6573,199.0,198.92,0.75378746]
[1736308900899,0.12549,198.99,198.9,15.17546442]
[1736308901099,0.12549,198.99,198.91,0.75383633]
[1736308901320,0.12549,198.99,198.92,15.17546442]
[1736308901717,0.12549,198.99,198.91,15.17546442]
[1736308902230,0.12549,198.99,198.9,15.92924622]
[1736308902528,23.902374,198.99,198.85,28.50100793]
[1736308902719,23.902374,198.99,198.85,0.75384351]
[1736308902914,23.902374,198.99,198.84,17.95012232]
[1736308903318,0.12549,198.95,198.84,17.95012232]
[1736308903504,0.12549,198.95,198.84,0.75400997]
[1736308904325,0.12549,198.95,198.85,15.17546442]
[1736308906131,0.12549,198.95,198.86,5.047]
[1736308907328,0.12549,198.95,198.85,5.047]
[1736308908440,0.12549,198.95,198.83,5.047]